bitfinex-derivatives/quotes_BTCF0:USTF0_20250720
["timestamp","ask_amount","ask_price","bid_price","bid_amount"]
[1753034688967,2.25843945,118290.0,118280.0,0.80523555]
[1753034691062,2.33402449,118290.0,118280.0,0.80523555]
[1753034691360,2.45540449,118290.0,118280.0,0.80523555]
[1753034692156,2.37981945,118290.0,118280.0,0.80523555]
[1753034693158,2.45540449,118290.0,118280.0,0.7849239]
[1753034693359,2.45540449,118290.0,118280.0,0.8174939]
[1753034693558,2.09460449,118290.0,118280.0,0.8174939]
[1753034696561,1.97322449,118290.0,118280.0,0.8174939]
[1753034697160,2.11307449,118290.0,118280.0,0.82050429]
[1753034698057,2.47387449,118290.0,118280.0,0.82050429]
[1753034698264,2.39828945,118290.0,118280.0,0.82050429]
[1753034699358,2.14595609,118290.0,118280.0,0.82050429]
[1753034699663,2.39828945,118290.0,118280.0,0.82050429]
[1753034701563,2.14595609,118290.0,118280.0,0.82050429]
[1753034701765,2.39828945,118290.0,118280.0,0.82050429]
[1753034702065,2.14595609,118290.0,118280.0,0.82050429]
[1753034702367,2.39828945,118290.0,118280.0,0.82050429]
[1753034705868,2.14595609,118290.0,118280.0,0.82050429]
[1753034706065,2.39828945,118290.0,118280.0,0.82050429]
[1753034707268,2.39828945,118290.0,118280.0,0.77842429]
[1753034712263,2.75908945,118290.0,118280.0,0.28422846]
[1753034712469,0.1690456,118260.0,118250.0,0.48576]
[1753034712667,1.0314856,118260.0,118250.0,0.75604846]
[1753034712862,1.0314856,118260.0,118250.0,1.25838182]
[1753034713758,1.0314856,118260.0,118250.0,1.00804846]
[1753034714267,1.0314856,118260.0,118250.0,1.20377182]
[1753034714868,1.0314856,118260.0,118250.0,1.20677182]
[1753034715558,1.07372486,118260.0,118250.0,1.20677182]
[1753034716269,1.1397437,118260.0,118250.0,1.20677182]
[1753034716869,1.2549037,118260.0,118250.0,1.20677182]
[1753034717561,1.3010437,118260.0,118250.0,1.20677182]
[1753034718167,1.3010437,118260.0,118250.0,1.27442182]
[1753034718969,1.2549037,118260.0,118250.0,1.27442182]
[1753034719170,1.1397437,118260.0,118250.0,1.27442182]
[1753034719771,1.1397437,118260.0,118250.0,1.30195954]
[1753034720068,1.1397437,118260.0,118250.0,1.27442182]
[1753034720963,1.1397437,118260.0,118250.0,1.02208846]
[1753034721160,1.1397437,118260.0,118250.0,1.27442182]
[1753034722170,1.1393037,118260.0,118250.0,1.27442182]
[1753034723173,1.1393037,118260.0,118250.0,1.40077756]
[1753034725774,1.1393037,118260.0,118250.0,1.77551756]
[1753034726074,1.1393037,118260.0,118250.0,1.61329081]
[1753034727475,1.1393037,118260.0,118250.0,1.80263536]
[1753034729378,1.2549637,118260.0,118250.0,1.80263536]
[1753034729578,1.2549637,118260.0,118250.0,1.80259242]
[1753034731774,0.3232581,118260.0,118250.0,1.80259242]
[1753034731974,0.07549243,118270.0,118260.0,0.18433]
[1753034732279,0.23,118270.0,118260.0,1.73460365]
[1753034732474,0.23,118270.0,118260.0,2.15367564]
[1753034732676,0.34049793,118270.0,118260.0,2.15367564]
[1753034733076,0.34049793,118270.0,118260.0,2.15467564]
[1753034733883,0.34049793,118270.0,118260.0,2.15667564]
[1753034734680,0.50952923,118270.0,118260.0,2.15667564]
[1753034735074,0.34049793,118270.0,118260.0,2.15667564]
[1753034735276,0.34049793,118270.0,118260.0,1.59098551]
[1753034735982,0.50952923,118270.0,118260.0,1.59098551]
[1753034736584,0.50952923,118270.0,118260.0,1.65862551]
[1753034737282,0.50952923,118270.0,118260.0,2.01942551]
[1753034737684,0.34049793,118270.0,118260.0,2.01942551]
[1753034738384,0.34049793,118270.0,118260.0,2.18947111]
[1753034738781,0.34049793,118270.0,118260.0,2.21680066]
[1753034738981,0.34049793,118270.0,118260.0,2.18947111]
[1753034739182,0.34049793,118270.0,118260.0,2.21679912]
[1753034741585,0.34049793,118270.0,118260.0,2.23964753]
[1753034742292,0.34049793,118270.0,118260.0,2.22079912]
[1753034743292,0.34049793,118270.0,118260.0,2.21879912]
[1753034743488,0.34049793,118270.0,118260.0,2.22479912]
[1753034748301,0.34049793,118270.0,118260.0,2.05568713]
[1753034748503,0.34049793,118270.0,118260.0,2.22479912]
[1753034748697,0.34049793,118270.0,118260.0,2.19747111]
[1753034751197,0.34049793,118270.0,118260.0,2.22473187]
[1753034751698,0.38282,118290.0,118260.0,2.24017799]
[1753034751899,0.26362,118290.0,118280.0,1.39530404]
[1753034752197,0.26362,118290.0,118280.0,2.01538404]
[1753034752198,0.1,118290.0,118280.0,2.01538404]
[1753034752399,0.1,118290.0,118280.0,2.18446404]
[1753034752998,0.1,118290.0,118280.0,2.18746404]
[1753034754302,0.14334626,118290.0,118280.0,2.18746404]
[1753034754601,0.1,118290.0,118280.0,2.18746404]
[1753034755203,0.1,118290.0,118280.0,2.19046404]
[1753034755397,0.1,118290.0,118280.0,1.57038404]
[1753034755596,0.26596,118290.0,118280.0,2.19018404]
[1753034755998,0.33492146,118290.0,118280.0,2.19018404]
[1753034758004,0.37663107,118290.0,118280.0,2.20882377]
[1753034758599,0.37663107,118290.0,118280.0,2.03974377]
[1753034758904,0.37663107,118290.0,118280.0,2.20882377]
[1753034759701,0.37663107,118290.0,118280.0,2.03974377]
[1753034759906,0.40040107,118290.0,118280.0,2.03974377]
[1753034760708,0.40040107,118290.0,118280.0,2.10737377]
[1753034761007,0.40040107,118290.0,118280.0,2.10709377]
[1753034761700,0.40040107,118290.0,118280.0,1.48757377]
[1753034761906,0.40040107,118290.0,118280.0,2.10689377]
[1753034763903,0.33013107,118290.0,118280.0,1.48757377]
[1753034764107,0.33013107,118290.0,118280.0,2.13498651]
[1753034764108,0.21067107,118290.0,118280.0,2.13498651]
[1753034764303,0.16896146,118290.0,118280.0,2.13498651]
[1753034764505,0.33492146,118290.0,118280.0,2.13498651]
[1753034765005,0.33492146,118290.0,118280.0,1.63029947]
[1753034765210,0.33492146,118290.0,118280.0,2.13498651]
[1753034765508,0.40144366,118290.0,118280.0,2.13498651]
[1753034769312,0.40144366,118290.0,118280.0,2.19789092]
[1753034769715,0.35869146,118290.0,118280.0,2.19789092]
[1753034770009,0.33492146,118290.0,118280.0,2.19789092]
[1753034770210,0.33492146,118290.0,118280.0,2.22073933]
[1753034772709,0.33492146,118290.0,118280.0,2.19789092]
[1753034774111,0.23130029,118300.0,118290.0,0.1690026]
[1753034774316,0.47752852,118300.0,118290.0,1.12464679]
[1753034774519,0.47752852,118300.0,118290.0,0.93544964]
[1753034776619,0.47752852,118300.0,118290.0,0.93744964]
[1753034776821,0.47752852,118300.0,118290.0,0.93944964]
[1753034777118,0.45375852,118300.0,118290.0,1.12864679]
[1753034777420,0.45375852,118300.0,118290.0,1.1514952]
[1753034780010,0.47752852,118300.0,118290.0,1.1514952]
[1753034780221,0.41130029,118300.0,118290.0,1.1514952]
[1753034784020,0.48006669,118300.0,118290.0,1.1514952]
[1753034784224,0.48006669,118300.0,118290.0,1.12864679]
[1753034785629,0.34596,118300.0,118290.0,1.12864679]
[1753034785828,0.18,118300.0,118290.0,1.1514952]
[1753034786632,0.18,118300.0,118290.0,1.7690552]
[1753034787025,0.18,118300.0,118290.0,1.12864679]
[1753034787230,0.18,118300.0,118290.0,1.74616679]
[1753034787623,0.18,118300.0,118290.0,1.91523879]
[1753034787829,0.16539,118310.0,118300.0,0.73757985]
[1753034788026,0.32539,118310.0,118300.0,1.14843662]
[1753034788529,0.32539,118310.0,118300.0,1.16760799]
[1753034788724,0.39241798,118310.0,118300.0,1.16760799]
[1753034788929,0.41633798,118310.0,118300.0,1.16760799]
[1753034789330,0.41633798,118310.0,118300.0,1.79000799]
[1753034790033,0.34931,118310.0,118300.0,1.79000799]
[1753034790734,0.34931,118310.0,118300.0,1.76720396]
[1753034791337,0.34931,118310.0,118300.0,1.79000799]
[1753034791834,0.32539,118310.0,118300.0,1.79000799]
[1753034792225,0.20717676,118320.0,118310.0,0.1689741]
[1753034792434,0.48109676,118320.0,118310.0,0.93542114]
[1753034792931,0.51319676,118320.0,118310.0,0.93542114]
[1753034793137,0.59421676,118320.0,118310.0,0.93542114]
[1753034793327,0.60551676,118320.0,118310.0,0.93542114]
[1753034793834,0.67271405,118320.0,118310.0,0.93642114]
[1753034797638,0.67271405,118320.0,118310.0,0.55802684]
[1753034797839,0.67271405,118320.0,118310.0,0.93642114]
[1753034799835,0.67271405,118320.0,118310.0,0.9091684]
[1753034800337,0.67271405,118320.0,118310.0,1.09836555]
[1753034800735,0.67271405,118320.0,118310.0,0.9091684]
[1753034805546,0.67271405,118320.0,118310.0,1.12556704]
[1753034806137,0.67271405,118320.0,118310.0,1.19317704]
[1753034806438,0.50650729,118320.0,118310.0,1.19317704]
[1753034806642,0.36381897,118320.0,118310.0,1.24475704]
[1753034806840,0.36381897,118320.0,118310.0,1.21755555]
[1753034809648,0.38773897,118320.0,118310.0,1.21755555]
[1753034809847,0.36381897,118320.0,118310.0,1.24475707]
[1753034811738,0.13514076,118330.0,118310.0,1.24475707]
[1753034811953,0.34393677,118330.0,118320.0,2.5555529]
[1753034812246,0.27522,118330.0,118320.0,2.01516297]
[1753034812449,0.27522,118330.0,118320.0,2.01616297]
[1753034813737,0.38834,118330.0,118320.0,1.40048297]
[1753034813937,0.55373,118330.0,118320.0,2.01612297]
[1753034814546,0.55373,118330.0,118320.0,1.98892145]
[1753034815042,0.59643696,118330.0,118320.0,1.98892145]
[1753034816650,0.51541696,118330.0,118320.0,1.98892145]
[1753034816948,0.47271,118330.0,118320.0,1.40048781]
[1753034817149,0.47271,118330.0,118320.0,2.01584781]
[1753034817448,0.47271,118330.0,118320.0,2.03864082]
[1753034818349,0.47271,118330.0,118320.0,2.01584781]
[1753034818547,0.47271,118330.0,118320.0,2.01484781]
[1753034818747,0.47271,118330.0,118320.0,2.01584781]
[1753034818946,0.44061,118330.0,118320.0,2.01584781]
[1753034819148,0.44061,118330.0,118320.0,1.95236562]
[1753034819845,0.42931,118330.0,118320.0,1.97515863]
[1753034821743,0.24,118330.0,118320.0,1.99366991]
[1753034821948,0.16702,118340.0,118330.0,0.4398857]
[1753034822146,0.19916,118350.0,118340.0,0.2771915]
[1753034822346,0.19916,118350.0,118340.0,1.69489249]
[1753034822347,0.38446055,118350.0,118340.0,1.69489249]
[1753034822546,0.61446055,118350.0,118340.0,1.69489249]
[1753034822953,0.65727062,118350.0,118340.0,1.69489249]
[1753034824250,0.65727062,118350.0,118340.0,1.66768613]
[1753034824950,0.65727062,118350.0,118340.0,1.6944156]
[1753034825154,0.65727062,118350.0,118340.0,1.66768613]
[1753034828647,0.65727062,118350.0,118340.0,0.78178613]
[1753034828855,0.65727062,118350.0,118340.0,1.1443315]
[1753034829242,0.65727062,118350.0,118340.0,0.9754]
[1753034829642,0.65727062,118350.0,118340.0,1.22745463]
[1753034829943,0.65727062,118350.0,118340.0,0.61285463]
[1753034830146,0.65727062,118350.0,118340.0,1.00200491]
[1753034830348,0.65727062,118350.0,118340.0,1.25405954]
[1753034831350,0.65727062,118350.0,118340.0,1.00200491]
[1753034831844,0.82618782,118350.0,118340.0,1.00200491]
[1753034832653,0.82618782,118350.0,118340.0,1.25405954]
[1753034832854,0.65727062,118350.0,118340.0,1.25405954]
[1753034833654,0.82618782,118350.0,118340.0,1.00200491]
[1753034833860,0.82618782,118350.0,118340.0,1.25405954]
[1753034834258,0.82618782,118350.0,118340.0,1.00200491]
[1753034835850,0.1689315,118340.0,118330.0,0.3608]
[1753034836055,1.57080613,118340.0,118330.0,0.3608]
[1753034836250,1.3187515,118340.0,118330.0,0.3608]
[1753034836450,1.57080613,118340.0,118330.0,0.3608]
[1753034836653,1.65531198,118340.0,118330.0,0.3608]
[1753034837055,1.86431998,118340.0,118330.0,0.3358]
[1753034837253,1.86431998,118340.0,118330.0,0.3108]
[1753034837451,1.86431998,118340.0,118330.0,0.2858]
[1753034837647,0.5878013,118330.0,118320.0,0.3608]
[1753034837951,1.10337593,118330.0,118320.0,0.38738884]
[1753034839353,1.10337593,118330.0,118320.0,0.3608]
[1753034839557,0.8513213,118330.0,118320.0,0.3608]
[1753034840358,1.10337593,118330.0,118320.0,0.3608]
[1753034840559,0.8513213,118330.0,118320.0,0.3608]
[1753034840754,1.10337593,118330.0,118320.0,0.3608]
[1753034840954,0.8513213,118330.0,118320.0,0.3608]
[1753034842455,0.91183005,118330.0,118320.0,0.3608]
[1753034842848,0.8513213,118330.0,118320.0,0.3608]
[1753034844161,0.4611,118320.0,118310.0,1.31696463]
[1753034844359,0.72462,118320.0,118310.0,1.67776463]
[1753034845361,0.72462,118320.0,118310.0,1.67876463]
[1753034845561,0.72462,118320.0,118310.0,1.67976463]
[1753034846160,0.72462,118320.0,118310.0,1.42771]
[1753034846460,0.72462,118320.0,118310.0,1.67956463]
[1753034847260,0.72462,118320.0,118310.0,1.84495463]
[1753034848356,0.72462,118320.0,118310.0,1.23135463]
[1753034848560,0.72462,118320.0,118310.0,1.84483463]
[1753034849764,0.78512875,118320.0,118310.0,1.84483463]
[1753034850261,0.78512875,118320.0,118310.0,1.42739]
[1753034850456,0.78512875,118320.0,118310.0,1.67944463]
[1753034851962,0.78512875,118320.0,118310.0,1.80279463]
[1753034852364,0.78512875,118320.0,118310.0,1.35470463]
[1753034852557,0.78512875,118320.0,118310.0,1.96798463]
[1753034854766,0.72462,118320.0,118310.0,1.96798463]
[1753034857162,0.72462,118320.0,118310.0,1.96754463]
[1753034857776,0.72462,118320.0,118310.0,1.71549]
[1753034857975,0.72462,118320.0,118310.0,1.96754463]
[1753034858177,0.72462,118320.0,118310.0,1.5501]
[1753034858477,0.72462,118320.0,118310.0,1.55002]
[1753034859078,0.78512875,118320.0,118310.0,1.55002]
[1753034859577,0.78512875,118320.0,118310.0,0.93726]
[1753034859772,0.72462,118320.0,118310.0,0.93726]
[1753034859977,0.97667463,118320.0,118310.0,1.43816]
[1753034860374,0.72462,118320.0,118310.0,1.43816]
[1753034861581,0.97667463,118320.0,118310.0,1.43816]
[1753034861783,0.97667463,118320.0,118310.0,0.82548]
[1753034862079,0.72462,118320.0,118310.0,0.82548]
[1753034862282,0.72462,118320.0,118310.0,0.46468]
[1753034862675,0.97667463,118320.0,118310.0,0.45311]
[1753034863081,1.03718338,118320.0,118310.0,0.45311]
[1753034863780,1.03718338,118320.0,118310.0,0.43041]
[1753034864281,1.15170351,118320.0,118310.0,0.43041]
[1753034867682,0.89964888,118320.0,118310.0,0.43041]
[1753034867882,1.15170351,118320.0,118310.0,0.43041]
[1753034868277,1.09119476,118320.0,118310.0,0.43041]
[1753034868478,1.15176659,118320.0,118310.0,0.43041]
[1753034868980,1.15176659,118320.0,118310.0,0.45513]
[1753034869182,1.09119476,118320.0,118310.0,0.45513]
[1753034870584,1.09119476,118320.0,118310.0,0.43041]
[1753034872684,1.09119476,118320.0,118310.0,0.45513]
[1753034873183,1.21755789,118320.0,118310.0,0.45513]
[1753034873782,1.29321488,118320.0,118310.0,0.45513]
[1753034874180,0.91479712,118320.0,118310.0,0.45513]
[1753034874378,1.29321488,118320.0,118310.0,0.45513]
[1753034877490,1.29321488,118320.0,118310.0,0.06961]
[1753034879290,1.29321488,118320.0,118310.0,0.04930576]
[1753034879491,1.29321488,118320.0,118310.0,0.002]
[1753034879790,1.52282385,118320.0,118310.0,0.002]
[1753034879994,0.4553782,118300.0,118290.0,0.55649]
[1753034880188,1.51947708,118300.0,118290.0,0.55649]
[1753034880490,1.51947708,118300.0,118290.0,0.74569888]
[1753034881293,1.51947708,118300.0,118290.0,0.74969888]
[1753034881492,1.51947708,118300.0,118290.0,0.56049]
[1753034881790,1.70868596,118300.0,118290.0,0.55749]
[1753034882391,1.51947708,118300.0,118290.0,0.74669888]
[1753034882786,1.3302682,118300.0,118290.0,0.74669888]
[1753034883090,1.51947708,118300.0,118290.0,0.74669888]
[1753034883284,0.90807708,118300.0,118290.0,0.91070888]
[1753034883490,1.51927708,118300.0,118290.0,0.91070888]
[1753034883792,1.51927708,118300.0,118290.0,0.7235]
[1753034883996,1.51927708,118300.0,118290.0,0.91270888]
[1753034885194,1.3300682,118300.0,118290.0,0.7235]
[1753034887096,1.3300682,118300.0,118290.0,0.7215]
[1753034887395,1.3300682,118300.0,118290.0,0.7225]
[1753034887594,1.39063186,118300.0,118290.0,0.7225]
[1753034887991,1.39035186,118300.0,118290.0,0.7225]
[1753034888393,1.39035186,118300.0,118290.0,0.97481655]
[1753034889797,1.40544519,118300.0,118290.0,0.97481655]
[1753034894200,1.65776174,118300.0,118290.0,0.44895]
[1753034894400,1.40544519,118300.0,118290.0,0.44895]
[1753034894603,1.65776174,118300.0,118290.0,0.44895]
[1753034895102,1.64263339,118300.0,118290.0,0.44895]
[1753034895296,1.58166475,118300.0,118290.0,0.44895]
[1753034899503,1.3293482,118300.0,118290.0,0.44895]
[1753034899704,1.58166475,118300.0,118290.0,0.44895]
[1753034900496,1.3293482,118300.0,118290.0,0.44895]
[1753034900701,1.58166475,118300.0,118290.0,0.4814]
[1753034901103,1.3293482,118300.0,118290.0,0.55849]
[1753034902211,1.40500519,118300.0,118290.0,0.55849]
[1753034902711,1.3293482,118300.0,118290.0,0.55849]
[1753034903211,1.40500519,118300.0,118290.0,0.55849]
[1753034904914,1.3293482,118300.0,118290.0,0.55849]
[1753034905116,1.51859241,118300.0,118290.0,0.74773421]
[1753034905719,1.3293482,118300.0,118290.0,0.55849]
[1753034905919,1.51859241,118300.0,118290.0,0.74773421]
[1753034906314,1.5942494,118300.0,118290.0,0.74773421]
[1753034906716,1.5942494,118300.0,118290.0,0.55849]
[1753034906917,1.5942494,118300.0,118290.0,0.74773421]
[1753034907118,1.5942494,118300.0,118290.0,0.55849]
[1753034907312,1.78349361,118300.0,118290.0,0.55849]
[1753034908320,1.25754803,118300.0,118290.0,0.44895]
[1753034908511,1.79149104,118300.0,118290.0,0.63819421]
[1753034910321,1.79149104,118300.0,118290.0,0.44895]
[1753034911218,1.79149104,118300.0,118290.0,0.63819421]
[1753034911424,1.60224683,118300.0,118290.0,0.63819421]
[1753034911722,1.41300262,118300.0,118290.0,0.66890421]
[1753034911922,1.60224683,118300.0,118290.0,0.74986421]
[1753034913026,1.41300262,118300.0,118290.0,0.74986421]
[1753034913224,1.60224683,118300.0,118290.0,0.74986421]
[1753034913424,1.67790382,118300.0,118290.0,0.74986421]
[1753034914118,0.77103509,118300.0,118290.0,0.91296421]
[1753034914323,1.36534621,118300.0,118290.0,0.91296421]
[1753034915121,1.55459042,118300.0,118290.0,0.72372]
[1753034915419,1.55459042,118300.0,118290.0,0.91296421]
[1753034915622,0.94531042,118300.0,118290.0,0.91296421]
[1753034915820,1.55447042,118300.0,118290.0,0.91296421]
[1753034920321,1.36522621,118300.0,118290.0,0.91296421]
[1753034920523,1.55447042,118300.0,118290.0,0.91296421]
[1753034921129,1.36522621,118300.0,118290.0,0.91296421]
[1753034921324,0.401,118300.0,118290.0,1.71096842]
[1753034921629,0.24,118300.0,118290.0,2.51470199]
[1753034922019,0.24,118300.0,118290.0,2.32545778]
[1753034922225,0.24,118300.0,118290.0,2.07545778]
[1753034922425,0.24,118300.0,118290.0,1.90645538]
[1753034922728,0.24,118300.0,118290.0,2.07545778]
[1753034923129,0.24,118300.0,118290.0,1.94917332]
[1753034923331,0.4089882,118300.0,118290.0,1.94917332]
[1753034925732,0.4089882,118300.0,118290.0,1.52796696]
[1753034926031,0.5729482,118300.0,118290.0,1.75475596]
[1753034926231,0.40396,118300.0,118290.0,1.75475596]
[1753034927732,0.40396,118300.0,118290.0,1.6715544]
[1753034927933,0.40396,118300.0,118290.0,1.92375836]
[1753034928129,0.5729481,118300.0,118290.0,1.14599596]
[1753034928334,0.40396,118300.0,118290.0,1.75419596]
[1753034928534,0.40396,118300.0,118290.0,1.92319836]
[1753034929631,0.40396,118300.0,118290.0,1.75412636]
[1753034931238,0.40396,118300.0,118290.0,1.75388636]
[1753034933234,0.40396,118300.0,118290.0,1.14592636]
[1753034933434,0.40396,118300.0,118290.0,1.75372636]
[1753034934535,0.24,118300.0,118290.0,1.7791171]
[1753034934737,0.238,118300.0,118290.0,1.79814472]
[1753034935037,0.238,118300.0,118290.0,1.79806472]
[1753034935935,0.238,118300.0,118290.0,1.52683314]
[1753034936142,0.44279,118300.0,118290.0,1.7790371]
[1753034936336,0.53416,118300.0,118290.0,1.7790371]
[1753034936831,0.52289,118300.0,118290.0,1.7790371]
[1753034939834,0.52289,118300.0,118290.0,1.75364636]
[1753034945245,0.44279,118300.0,118290.0,1.75364636]
[1753034945946,0.41147,118300.0,118290.0,1.75364636]
[1753034946951,0.44279,118300.0,118290.0,1.75364636]
[1753034947542,0.44279,118300.0,118290.0,1.77906866]
[1753034948550,0.41147,118300.0,118290.0,1.77906866]
[1753034949254,0.41147,118300.0,118290.0,1.7975526]
[1753034949951,0.41147,118300.0,118290.0,1.82033316]
[1753034951139,0.41147,118300.0,118290.0,1.94646696]
[1753034953348,0.44279,118300.0,118290.0,1.94646696]
[1753034953554,0.52289,118300.0,118290.0,1.94646696]
[1753034954456,0.90122776,118300.0,118290.0,1.38064286]
[1753034954646,0.7031481,118300.0,118290.0,1.54603118]
[1753034954852,0.91570698,118300.0,118290.0,1.54603118]
[1753034955049,0.7265381,118300.0,118290.0,1.54703118]
[1753034955455,0.7265381,118300.0,118290.0,1.54603118]
[1753034956258,0.55755,118300.0,118290.0,1.54603118]
[1753034957157,0.55755,118300.0,118290.0,1.60914846]
[1753034957861,0.7265382,118300.0,118290.0,0.5860423]
[1753034958158,0.78722631,118300.0,118290.0,1.16718]
[1753034958551,1.03951247,118300.0,118290.0,0.44895]
[1753034958756,1.03951247,118300.0,118290.0,1.05543]
[1753034959762,1.03951247,118300.0,118290.0,0.4127]
[1753034960657,1.06335878,118300.0,118290.0,0.43790489]
[1753034961856,1.06335878,118300.0,118290.0,0.43590489]
[1753034962063,1.06435878,118300.0,118290.0,0.43590489]
[1753034963157,0.81207262,118300.0,118290.0,0.43590489]
[1753034963362,1.41843262,118300.0,118290.0,0.47124489]
[1753034964459,1.39454631,118300.0,118290.0,0.56023]
[1753034966260,1.39354631,118300.0,118290.0,0.56223]
[1753034968263,1.64583247,118300.0,118290.0,0.56223]
[1753034968659,1.39354631,118300.0,118290.0,0.56223]
[1753034968860,1.64583247,118300.0,118290.0,0.56223]
[1753034969060,1.39354631,118300.0,118290.0,0.56223]
[1753034969459,1.3328582,118300.0,118290.0,0.56223]
[1753034969764,1.39354631,118300.0,118290.0,0.56223]
[1753034971360,1.64583247,118300.0,118290.0,0.56223]
[1753034974363,1.3328582,118300.0,118290.0,0.56223]
[1753034976472,1.3324582,118300.0,118290.0,0.83969213]
[1753034977059,1.3324582,118300.0,118290.0,0.58740597]
[1753034979164,1.521697,118300.0,118290.0,0.77664477]
[1753034979872,1.521697,118300.0,118290.0,0.7514688]
[1753034980368,0.915777,118300.0,118290.0,0.7514688]
[1753034980573,0.52289,118300.0,118290.0,1.1060976]
[1753034981266,0.58357811,118300.0,118290.0,1.1060976]
[1753034981776,0.58357811,118300.0,118290.0,0.9168588]
[1753034981966,0.691878,118300.0,118290.0,0.9168588]
[1753034982166,0.76753499,118300.0,118290.0,0.9168588]
[1753034984067,0.76753499,118300.0,118290.0,0.9844788]
[1753034985373,0.76753499,118300.0,118290.0,1.1737176]
[1753034985773,0.76753499,118300.0,118290.0,0.9844788]
[1753034986673,0.76753499,118300.0,118290.0,0.9854788]
[1753034987977,0.76753499,118300.0,118290.0,0.79624]
[1753034988276,0.76753499,118300.0,118290.0,0.9854788]
[1753034988472,0.77930499,118300.0,118290.0,0.79624]
[1753034988776,1.18118259,118300.0,118290.0,0.48132]
[1753034988970,1.1055256,118300.0,118290.0,0.48132]
[1753034989175,0.727048,118300.0,118290.0,0.48132]
[1753034989374,1.1055256,118300.0,118290.0,0.48132]
[1753034989572,1.18118259,118300.0,118290.0,0.48132]
[1753034989876,1.1661987,118300.0,118290.0,0.48132]
[1753034990276,1.1661987,118300.0,118290.0,0.47932]
[1753034990478,0.7877211,118300.0,118290.0,0.47932]
[1753034990678,1.1661987,118300.0,118290.0,0.47932]
[1753034991270,1.04007655,118300.0,118290.0,0.47932]
[1753034992280,1.06393787,118300.0,118290.0,0.47932]
[1753034992584,1.16393787,118300.0,118290.0,0.47932]
[1753034992786,1.16393787,118300.0,118290.0,0.47832]
[1753034992981,1.16393787,118300.0,118290.0,0.11852]
[1753034993280,1.16393787,118300.0,118290.0,0.14362712]
[1753034993482,1.16393787,118300.0,118290.0,0.50442712]
[1753034993686,1.16393787,118300.0,118290.0,0.14362712]
[1753034994282,0.91158242,118300.0,118290.0,0.50442712]
[1753034994484,1.16393787,118300.0,118290.0,0.50442712]
[1753034994680,0.91158242,118300.0,118290.0,0.50442712]
[1753034994982,1.16393787,118300.0,118290.0,0.50442712]
[1753034995481,1.16393787,118300.0,118290.0,0.14362712]
[1753034995676,1.16393787,118300.0,118290.0,0.50442712]
[1753034996488,1.76917787,118300.0,118290.0,0.14362712]
[1753034996692,1.76917787,118300.0,118290.0,0.50442712]
[1753034996892,1.76917787,118300.0,118290.0,0.14362712]
[1753034997491,1.51682242,118300.0,118290.0,0.50442712]
[1753034997692,1.76917787,118300.0,118290.0,0.50442712]
[1753034998794,1.76917787,118300.0,118290.0,0.47932]
[1753034999692,1.84483486,118300.0,118290.0,0.47932]
[1753035003494,1.74483486,118300.0,118290.0,0.50186]
[1753035003689,1.49247941,118300.0,118290.0,0.50186]
[1753035003891,1.74483486,118300.0,118290.0,0.50186]
[1753035004089,1.13959486,118300.0,118290.0,0.50186]
[1753035004291,1.74467486,118300.0,118290.0,0.50186]
[1753035005096,1.66901787,118300.0,118290.0,0.50186]
[1753035005696,1.41666242,118300.0,118290.0,0.50186]
[1753035005896,1.47732895,118300.0,118290.0,0.50186]
[1753035006095,1.7296844,118300.0,118290.0,0.51352]
[1753035006297,1.47732895,118300.0,118290.0,0.51352]
[1753035006504,1.47732895,118300.0,118290.0,0.64491352]
[1753035006505,1.41662242,118300.0,118290.0,0.64491352]
[1753035010405,1.66897787,118300.0,118290.0,0.64491352]
[1753035010904,1.41662242,118300.0,118290.0,0.64491352]
[1753035011402,1.60586081,118300.0,118290.0,0.83415191]
[1753035012503,1.41662242,118300.0,118290.0,0.83415191]
[1753035012702,1.60586081,118300.0,118290.0,0.83415191]
[1753035013603,1.66652734,118300.0,118290.0,0.80904839]
[1753035013999,1.39255453,118300.0,118290.0,0.97443839]
[1753035014305,1.36915453,118300.0,118290.0,0.97443839]
[1753035014702,1.36915453,118300.0,118290.0,1.16367678]
[1753035014703,1.35734453,118300.0,118290.0,1.16367678]
[1753035014904,1.35734453,118300.0,118290.0,0.97443839]
[1753035016406,1.296678,118300.0,118290.0,0.9991096]
[1753035016606,0.691878,118300.0,118290.0,0.9991096]
[1753035017006,0.703668,118300.0,118290.0,0.9991096]
[1753035019116,0.89290639,118300.0,118290.0,1.41455121]
[1753035019302,0.91548639,118300.0,118290.0,1.6037896]
[1753035019605,0.726248,118300.0,118290.0,1.6037896]
[1753035019810,0.91548639,118300.0,118290.0,1.41455121]
[1753035020011,0.91548639,118300.0,118290.0,1.6037896]
[1753035020410,0.89290639,118300.0,118290.0,1.6037896]
[1753035021508,0.95357292,118300.0,118290.0,1.38988]
[1753035021708,0.97615292,118300.0,118290.0,1.57911839]
[1753035024913,0.97615292,118300.0,118290.0,1.21831839]
[1753035025114,0.97615292,118300.0,118290.0,1.22449]
[1753035025313,1.16539131,118300.0,118290.0,1.22449]
[1753035025613,1.16539131,118300.0,118290.0,0.61981]
[1753035025817,1.16539131,118300.0,118290.0,0.50186]
[1753035029815,1.10472478,118300.0,118290.0,0.50186]
[1753035031108,1.10472478,118300.0,118290.0,0.51333]
[1753035031711,1.02143856,118300.0,118290.0,0.70256839]
[1753035031918,1.62575856,118300.0,118290.0,0.81558839]
[1753035032419,1.62571856,118300.0,118290.0,0.81558839]
[1753035032718,1.51976639,118300.0,118290.0,0.81558839]
[1753035033016,0.91548639,118300.0,118290.0,0.81558839]
[1753035033214,1.51976639,118300.0,118290.0,0.98031839]
[1753035033518,1.330528,118300.0,118290.0,0.98031839]
[1753035033725,1.51976639,118300.0,118290.0,0.98031839]
[1753035035114,1.51976639,118300.0,118290.0,0.79108]
[1753035035418,1.51976639,118300.0,118290.0,0.98031839]
[1753035039024,1.330528,118300.0,118290.0,0.98031839]
[1753035039210,0.726248,118300.0,118290.0,0.98031839]
[1753035039412,1.307748,118300.0,118290.0,0.98031839]
[1753035039615,1.307748,118300.0,118290.0,0.79108]
[1753035039818,1.307748,118300.0,118290.0,1.00499627]
[1753035040012,1.307748,118300.0,118290.0,0.79108]
[1753035040217,1.55764455,118300.0,118290.0,0.98031839]
[1753035040519,1.36840616,118300.0,118290.0,0.79108]
[1753035040717,1.55764455,118300.0,118290.0,0.98031839]
[1753035042016,1.49698639,118300.0,118290.0,1.00499632]
[1753035048722,1.49698639,118300.0,118290.0,0.81575793]
[1753035048921,1.49698639,118300.0,118290.0,1.00499632]
[1753035050023,1.52107639,118300.0,118290.0,1.41943793]
[1753035050224,1.52107639,118300.0,118290.0,1.60867632]
[1753035050831,1.52107639,118300.0,118290.0,1.00499632]
[1753035051130,1.58173455,118300.0,118290.0,1.58395839]